[Event "Titled Tuesday Blitz March 08 Early 2022"]
[White "Spitzl, Vinzent"]
[Black "P., Komal Kishore"]
[WhiteFideId "12901253"]
[BlackFideId "5016703"]
[WhiteElo "2160"]
[BlackElo "2129"]
[Result "1-0"]
[Round "09"]
[TimeControl "180+1"]
[Date "2022.03.09"]
[WhiteClock "0:00:39"]
[BlackClock "0:00:16"]

1. e4 {[%clk 0:03:00]}  c6 {[%clk 0:03:00]} 2. d4 {[%clk 0:02:40]}  d5 {[%clk 0:03:01]} 3. exd5 {[%clk 0:02:41]}  cxd5 {[%clk 0:03:01]} 4. Bd3 {[%clk 0:02:41]}  Nc6 {[%clk 0:03:00]} 5. c3 {[%clk 0:02:40]}  Nf6 {[%clk 0:02:59]} 6. Bf4 {[%clk 0:02:38]}  e6 {[%clk 0:02:56]} 7. Nf3 {[%clk 0:02:36]}  Bd6 {[%clk 0:02:56]} 8. Bxd6 {[%clk 0:02:35]}  Qxd6 {[%clk 0:02:55]} 9. Nbd2 {[%clk 0:02:36]}  O-O {[%clk 0:02:55]} 10. O-O {[%clk 0:02:36]}  a6 {[%clk 0:02:54]} 11. Re1 {[%clk 0:02:36]}  b5 {[%clk 0:02:53]} 12. a3 {[%clk 0:02:35]}  Na5 {[%clk 0:02:53]} 13. b4 {[%clk 0:02:34]}  Nb7 {[%clk 0:02:19]} 14. Nb3 {[%clk 0:02:32]}  Qb6 {[%clk 0:02:09]} 15. Ne5 {[%clk 0:02:25]}  Nd6 {[%clk 0:02:07]} 16. Nc5 {[%clk 0:02:25]}  Rd8 {[%clk 0:01:58]} 17. Re3 {[%clk 0:02:15]}  Bd7 {[%clk 0:01:56]} 18. Rh3 {[%clk 0:02:11]}  Be8 {[%clk 0:01:53]} 19. g4 {[%clk 0:02:02]}  g6 {[%clk 0:01:28]} 20. g5 {[%clk 0:01:58]}  Nd7 {[%clk 0:01:24]} 21. Ncxd7 {[%clk 0:01:47]}  Bxd7 {[%clk 0:01:23]} 22. Qg4 {[%clk 0:01:47]}  Nf5 {[%clk 0:01:13]} 23. Bxf5 {[%clk 0:01:28]}  exf5 {[%clk 0:01:13]} 24. Qh4 {[%clk 0:01:28]}  Be6 {[%clk 0:01:12]} 25. Qxh7+ {[%clk 0:01:27]}  Kf8 {[%clk 0:01:12]} 26. Qh8+ {[%clk 0:01:21]}  Ke7 {[%clk 0:01:11]} 27. Qf6+ {[%clk 0:01:22]}  Kd6 {[%clk 0:01:07]} 28. Nxf7+ {[%clk 0:01:20]}  Kc7 {[%clk 0:01:07]} 29. Nxd8 {[%clk 0:01:10]}  Rxd8 {[%clk 0:01:04]} 30. Rh7+ {[%clk 0:01:10]}  Kc8 {[%clk 0:01:01]} 31. Re1 {[%clk 0:01:08]}  Re8 {[%clk 0:00:46]} 32. Rh8 {[%clk 0:00:58]}  Rxh8 {[%clk 0:00:39]} 33. Qxh8+ {[%clk 0:00:59]}  Kc7 {[%clk 0:00:38]} 34. Qg7+ {[%clk 0:00:57]}  Bd7 {[%clk 0:00:37]} 35. Re7 {[%clk 0:00:55]}  Qd6 {[%clk 0:00:36]} 36. Rxd7+ {[%clk 0:00:49]}  Qxd7 {[%clk 0:00:33]} 37. Qxd7+ {[%clk 0:00:50]}  Kxd7 {[%clk 0:00:32]} 38. Kg2 {[%clk 0:00:50]}  Ke6 {[%clk 0:00:29]} 39. Kg3 {[%clk 0:00:50]}  Kd6 {[%clk 0:00:24]} 40. h4 {[%clk 0:00:49]}  Ke6 {[%clk 0:00:24]} 41. h5 {[%clk 0:00:45]}  gxh5 {[%clk 0:00:20]} 42. Kh4 {[%clk 0:00:44]}  f4 {[%clk 0:00:19]} 43. Kxh5 {[%clk 0:00:45]}  Kf5 {[%clk 0:00:18]} 44. g6 {[%clk 0:00:43]}  f3 {[%clk 0:00:18]} 45. g7 {[%clk 0:00:40]}  Ke4 {[%clk 0:00:18]} 46. g8=Q {[%clk 0:00:40]}  Kd3 {[%clk 0:00:16]} 47. Qxd5 {[%clk 0:00:39]} 1-0


[Site "https://www.chess.com"]

[Event "Titled Tuesday Blitz March 08 Early 2022"]
[White "Svane, Rasmus"]
[Black "Golubka, Petro"]
[WhiteFideId "4657101"]
[BlackFideId "14114224"]
[WhiteElo "2645"]
[BlackElo "2346"]
[Result "1-0"]
[Round "09"]
[TimeControl "180+1"]
[Date "2022.03.08"]
[WhiteClock "0:02:33"]
[BlackClock "0:01:45"]

1. Nf3 {[%clk 0:03:00]}  d5 {[%clk 0:02:54]} 2. g3 {[%clk 0:03:00]}  c6 {[%clk 0:02:53]} 3. Bg2 {[%clk 0:03:01]}  Nf6 {[%clk 0:02:54]} 4. O-O {[%clk 0:03:01]}  Bf5 {[%clk 0:02:54]} 5. c4 {[%clk 0:03:01]}  e6 {[%clk 0:02:54]} 6. Qb3 {[%clk 0:03:00]}  Qb6 {[%clk 0:02:53]} 7. d3 {[%clk 0:03:00]}  Nbd7 {[%clk 0:02:52]} 8. cxd5 {[%clk 0:03:01]}  exd5 {[%clk 0:02:52]} 9. Qc2 {[%clk 0:03:01]}  Be7 {[%clk 0:02:36]} 10. Nc3 {[%clk 0:03:01]}  O-O {[%clk 0:02:35]} 11. e4 {[%clk 0:03:02]}  dxe4 {[%clk 0:02:35]} 12. dxe4 {[%clk 0:03:03]}  Bg6 {[%clk 0:02:34]} 13. Be3 {[%clk 0:03:03]}  Qc7 {[%clk 0:02:26]} 14. Nh4 {[%clk 0:03:04]}  Ng4 {[%clk 0:02:22]} 15. Nd5 {[%clk 0:02:58]}  Qd8 {[%clk 0:02:21]} 16. Nxe7+ {[%clk 0:02:58]}  Qxe7 {[%clk 0:02:22]} 17. Bd4 {[%clk 0:02:54]}  Rfd8 {[%clk 0:02:19]} 18. Rad1 {[%clk 0:02:53]}  Ndf6 {[%clk 0:02:14]} 19. h3 {[%clk 0:02:40]}  Nxe4 {[%clk 0:01:44]} 20. Nxg6 {[%clk 0:02:36]}  hxg6 {[%clk 0:01:45]} 21. Qxe4 {[%clk 0:02:33]} 1-0


[Site "https://www.chess.com"]

[Event "Titled Tuesday Blitz March 08 Early 2022"]
[White "Tari, Aryan"]
[Black "Garriga Cazorla, Pere"]
[WhiteFideId "1510045"]
[BlackFideId "32011601"]
[WhiteElo "2567"]
[BlackElo "2458"]
[Result "1/2-1/2"]
[Round "09"]
[TimeControl "180+1"]
[Date "2022.03.08"]
[WhiteClock "0:00:03"]
[BlackClock "0:00:16"]

1. d4 {[%clk 0:02:56]}  Nf6 {[%clk 0:02:59]} 2. g3 {[%clk 0:02:44]}  e6 {[%clk 0:02:53]} 3. Bg2 {[%clk 0:02:44]}  c5 {[%clk 0:02:53]} 4. Nf3 {[%clk 0:02:42]}  cxd4 {[%clk 0:02:54]} 5. Nxd4 {[%clk 0:02:43]}  d5 {[%clk 0:02:52]} 6. c4 {[%clk 0:02:43]}  e5 {[%clk 0:02:49]} 7. Nf3 {[%clk 0:02:43]}  d4 {[%clk 0:02:47]} 8. O-O {[%clk 0:02:41]}  Nc6 {[%clk 0:02:48]} 9. e3 {[%clk 0:02:41]}  Be7 {[%clk 0:02:44]} 10. exd4 {[%clk 0:02:42]}  exd4 {[%clk 0:02:45]} 11. Bf4 {[%clk 0:02:42]}  O-O {[%clk 0:02:37]} 12. Ne5 {[%clk 0:02:42]}  Qb6 {[%clk 0:02:28]} 13. Re1 {[%clk 0:02:23]}  Be6 {[%clk 0:02:28]} 14. Nd2 {[%clk 0:02:21]}  Nxe5 {[%clk 0:02:15]} 15. Rxe5 {[%clk 0:02:20]}  a6 {[%clk 0:02:02]} 16. Qb3 {[%clk 0:02:11]}  Qxb3 {[%clk 0:01:44]} 17. Nxb3 {[%clk 0:02:12]}  Rad8 {[%clk 0:01:34]} 18. Nc5 {[%clk 0:01:58]}  Bxc5 {[%clk 0:01:14]} 19. Rxc5 {[%clk 0:01:59]}  Rd7 {[%clk 0:01:15]} 20. Rd1 {[%clk 0:01:50]}  Rfd8 {[%clk 0:01:14]} 21. h3 {[%clk 0:01:09]}  h6 {[%clk 0:01:13]} 22. g4 {[%clk 0:01:08]}  d3 {[%clk 0:01:06]} 23. Bf3 {[%clk 0:01:03]}  Nh7 {[%clk 0:00:54]} 24. b3 {[%clk 0:00:57]}  Nf8 {[%clk 0:00:49]} 25. Rd2 {[%clk 0:00:43]}  Ng6 {[%clk 0:00:49]} 26. Bg3 {[%clk 0:00:44]}  Ne7 {[%clk 0:00:43]} 27. Rc7 {[%clk 0:00:42]}  Rxc7 {[%clk 0:00:40]} 28. Bxc7 {[%clk 0:00:43]}  Rd7 {[%clk 0:00:40]} 29. Bg3 {[%clk 0:00:42]}  f5 {[%clk 0:00:40]} 30. Kf1 {[%clk 0:00:35]}  Kf7 {[%clk 0:00:36]} 31. Ke1 {[%clk 0:00:34]}  Nc6 {[%clk 0:00:35]} 32. Kf1 {[%clk 0:00:19]}  Kf6 {[%clk 0:00:31]} 33. Bd1 {[%clk 0:00:17]}  g5 {[%clk 0:00:28]} 34. f4 {[%clk 0:00:18]}  Rd4 {[%clk 0:00:20]} 35. fxg5+ {[%clk 0:00:13]}  hxg5 {[%clk 0:00:20]} 36. Bf2 {[%clk 0:00:13]}  Rf4 {[%clk 0:00:19]} 37. Kg1 {[%clk 0:00:05]}  fxg4 {[%clk 0:00:18]} 38. Bg3 {[%clk 0:00:03]}  Rd4 {[%clk 0:00:17]} 39. hxg4 {[%clk 0:00:03]}  Bxg4 {[%clk 0:00:17]} 40. Bf2 {[%clk 0:00:02]}  Re4 {[%clk 0:00:17]} 41. Rxd3 {[%clk 0:00:02]}  Bxd1 {[%clk 0:00:17]} 42. Rxd1 {[%clk 0:00:03]}  Re2 {[%clk 0:00:18]} 43. a3 {[%clk 0:00:03]}  Kf5 {[%clk 0:00:16]} 1/2-1/2


[Site "https://www.chess.com"]

[Event "Titled Tuesday Blitz March 08 Early 2022"]
[White "Tologon tegin, Semetei"]
[Black "Leiva, Gianmarco"]
[WhiteFideId "13800574"]
[BlackFideId "3804399"]
[WhiteElo "2258"]
[BlackElo "2311"]
[Result "1-0"]
[Round "09"]
[TimeControl "180+1"]
[Date "2022.03.09"]
[WhiteClock "0:00:22"]
[BlackClock "0:00:15"]

1. e4 {[%clk 0:02:58]}  c5 {[%clk 0:02:59]} 2. Nf3 {[%clk 0:02:56]}  d6 {[%clk 0:02:59]} 3. d4 {[%clk 0:02:55]}  cxd4 {[%clk 0:03:00]} 4. Nxd4 {[%clk 0:02:55]}  Nf6 {[%clk 0:03:01]} 5. Nc3 {[%clk 0:02:55]}  a6 {[%clk 0:03:01]} 6. Be3 {[%clk 0:02:54]}  e5 {[%clk 0:03:01]} 7. Nb3 {[%clk 0:02:53]}  Be7 {[%clk 0:03:02]} 8. f3 {[%clk 0:02:53]}  Be6 {[%clk 0:03:02]} 9. Qd2 {[%clk 0:02:53]}  h5 {[%clk 0:03:03]} 10. O-O-O {[%clk 0:02:52]}  Nbd7 {[%clk 0:03:01]} 11. Qf2 {[%clk 0:02:41]}  b5 {[%clk 0:02:55]} 12. Kb1 {[%clk 0:02:40]}  Qc7 {[%clk 0:02:49]} 13. h3 {[%clk 0:02:21]}  h4 {[%clk 0:02:48]} 14. f4 {[%clk 0:02:17]}  b4 {[%clk 0:02:30]} 15. Nd5 {[%clk 0:02:17]}  Bxd5 {[%clk 0:02:24]} 16. exd5 {[%clk 0:02:17]}  Ne4 {[%clk 0:02:21]} 17. Qe1 {[%clk 0:02:09]}  Ng3 {[%clk 0:02:12]} 18. Rg1 {[%clk 0:02:06]}  Rb8 {[%clk 0:01:56]} 19. Bxa6 {[%clk 0:02:03]}  O-O {[%clk 0:01:53]} 20. fxe5 {[%clk 0:01:53]}  Nxe5 {[%clk 0:01:52]} 21. Bf4 {[%clk 0:01:34]}  Ra8 {[%clk 0:01:48]} 22. Bb5 {[%clk 0:01:34]}  Rfb8 {[%clk 0:01:44]} 23. Bc6 {[%clk 0:01:31]}  Nxc6 {[%clk 0:01:27]} 24. dxc6 {[%clk 0:01:31]}  Bf6 {[%clk 0:01:25]} 25. Rxd6 {[%clk 0:01:24]}  Qa7 {[%clk 0:01:20]} 26. Nc1 {[%clk 0:01:19]}  Bc3 {[%clk 0:01:20]} 27. Qe3 {[%clk 0:01:14]}  Qxe3 {[%clk 0:01:06]} 28. Bxe3 {[%clk 0:01:14]}  Nf5 {[%clk 0:01:07]} 29. Rd3 {[%clk 0:01:00]}  Nxe3 {[%clk 0:01:08]} 30. bxc3 {[%clk 0:01:00]}  bxc3+ {[%clk 0:01:08]} 31. Nb3 {[%clk 0:00:59]}  Nc4 {[%clk 0:00:56]} 32. Rxc3 {[%clk 0:00:59]}  Ra4 {[%clk 0:00:44]} 33. Rd1 {[%clk 0:00:55]}  Rc8 {[%clk 0:00:45]} 34. Rd4 {[%clk 0:00:43]}  Rxc6 {[%clk 0:00:45]} 35. Kc1 {[%clk 0:00:43]}  g5 {[%clk 0:00:35]} 36. Nd2 {[%clk 0:00:34]}  Nxd2 {[%clk 0:00:33]} 37. Rd8+ {[%clk 0:00:33]}  Kg7 {[%clk 0:00:33]} 38. Rxc6 {[%clk 0:00:32]}  Nf1 {[%clk 0:00:30]} 39. Kb2 {[%clk 0:00:30]}  Ne3 {[%clk 0:00:30]} 40. Rd2 {[%clk 0:00:27]}  Nc4+ {[%clk 0:00:30]} 41. Kb3 {[%clk 0:00:26]}  Nxd2+ {[%clk 0:00:19]} 42. Kxa4 {[%clk 0:00:26]}  Nf1 {[%clk 0:00:20]} 43. Kb5 {[%clk 0:00:25]}  Ne3 {[%clk 0:00:20]} 44. a4 {[%clk 0:00:24]}  Nxg2 {[%clk 0:00:21]} 45. a5 {[%clk 0:00:25]}  g4 {[%clk 0:00:21]} 46. hxg4 {[%clk 0:00:24]}  h3 {[%clk 0:00:22]} 47. Rc3 {[%clk 0:00:24]}  Nf4 {[%clk 0:00:20]} 48. Rf3 {[%clk 0:00:22]}  Kg6 {[%clk 0:00:15]} 49. Rxf4 {[%clk 0:00:22]} 1-0


[Site "https://www.chess.com"]

[Event "Titled Tuesday Blitz March 08 Early 2022"]
[White "Urbina Quiroz, Edwin"]
[Black "Zemerov, Vladimir"]
[WhiteFideId "6500650"]
[BlackFideId "4111583"]
[WhiteElo "2152"]
[BlackElo "2277"]
[Result "0-1"]
[Round "09"]
[TimeControl "180+1"]
[Date "2022.03.09"]
[WhiteClock "0:00:58"]
[BlackClock "0:01:07"]

1. e4 {[%clk 0:02:15]}  c5 {[%clk 0:02:58]} 2. Nf3 {[%clk 0:02:15]}  e6 {[%clk 0:02:58]} 3. c3 {[%clk 0:02:15]}  Nf6 {[%clk 0:02:56]} 4. e5 {[%clk 0:02:15]}  Nd5 {[%clk 0:02:56]} 5. d4 {[%clk 0:02:16]}  cxd4 {[%clk 0:02:56]} 6. cxd4 {[%clk 0:02:16]}  b6 {[%clk 0:02:56]} 7. Bc4 {[%clk 0:02:17]}  Bb7 {[%clk 0:02:55]} 8. Qe2 {[%clk 0:02:17]}  d6 {[%clk 0:02:55]} 9. h4 {[%clk 0:02:16]}  Nd7 {[%clk 0:02:54]} 10. a3 {[%clk 0:02:15]}  Qc7 {[%clk 0:02:54]} 11. Bd2 {[%clk 0:02:08]}  Rc8 {[%clk 0:02:52]} 12. Bd3 {[%clk 0:02:01]}  dxe5 {[%clk 0:02:29]} 13. dxe5 {[%clk 0:02:02]}  Nc5 {[%clk 0:02:26]} 14. Bc2 {[%clk 0:01:59]}  Ba6 {[%clk 0:02:22]} 15. Qd1 {[%clk 0:01:56]}  Nd3+ {[%clk 0:02:19]} 16. Bxd3 {[%clk 0:01:56]}  Bxd3 {[%clk 0:02:19]} 17. Nc3 {[%clk 0:01:56]}  Nxc3 {[%clk 0:01:58]} 18. Bxc3 {[%clk 0:01:57]}  Bb5 {[%clk 0:01:53]} 19. Qd2 {[%clk 0:01:34]}  Rd8 {[%clk 0:01:48]} 20. Qe3 {[%clk 0:01:27]}  Bc5 {[%clk 0:01:47]} 21. Qe4 {[%clk 0:01:26]}  h6 {[%clk 0:01:36]} 22. Rd1 {[%clk 0:01:25]}  O-O {[%clk 0:01:35]} 23. a4 {[%clk 0:01:21]}  Rxd1+ {[%clk 0:01:29]} 24. Kxd1 {[%clk 0:01:20]}  Rd8+ {[%clk 0:01:30]} 25. Kc1 {[%clk 0:01:20]}  Bd3 {[%clk 0:01:30]} 26. Qg4 {[%clk 0:01:16]}  Bf5 {[%clk 0:01:26]} 27. Qf4 {[%clk 0:01:14]}  Qd7 {[%clk 0:01:22]} 28. g4 {[%clk 0:00:58]}  Bh7 {[%clk 0:01:09]} 29. Ng5 {[%clk 0:00:57]}  hxg5 {[%clk 0:01:07]} 30. hxg5 {[%clk 0:00:58]}  Qd3 {[%clk 0:01:07]} 0-1


[Site "https://www.chess.com"]

[Event "Titled Tuesday Blitz March 08 Early 2022"]
[White "Vakhlamov, Igor L."]
[Black "Taichman, Ori"]
[WhiteFideId "24126748"]
[BlackFideId "2804069"]
[WhiteElo "2401"]
[BlackElo "2227"]
[Result "1-0"]
[Round "09"]
[TimeControl "180+1"]
[Date "2022.03.08"]
[WhiteClock "0:00:56"]
[BlackClock "0:00:08"]

1. e4 {[%clk 0:03:00]}  c5 {[%clk 0:02:59]} 2. Nf3 {[%clk 0:02:59]}  Nc6 {[%clk 0:02:59]} 3. Nc3 {[%clk 0:02:59]}  g6 {[%clk 0:02:59]} 4. d4 {[%clk 0:02:59]}  cxd4 {[%clk 0:02:59]} 5. Nxd4 {[%clk 0:02:59]}  Bg7 {[%clk 0:03:00]} 6. Be3 {[%clk 0:03:00]}  Nf6 {[%clk 0:03:00]} 7. Bc4 {[%clk 0:03:00]}  O-O {[%clk 0:03:00]} 8. Bb3 {[%clk 0:03:00]}  d6 {[%clk 0:03:00]} 9. h3 {[%clk 0:03:00]}  Bd7 {[%clk 0:02:53]} 10. O-O {[%clk 0:03:00]}  Rc8 {[%clk 0:02:53]} 11. f4 {[%clk 0:02:59]}  Na5 {[%clk 0:02:47]} 12. e5 {[%clk 0:02:57]}  Ne8 {[%clk 0:02:18]} 13. e6 {[%clk 0:02:55]}  Rxc3 {[%clk 0:02:00]} 14. exf7+ {[%clk 0:02:46]}  Rxf7 {[%clk 0:01:59]} 15. Bxf7+ {[%clk 0:02:45]}  Kxf7 {[%clk 0:02:00]} 16. bxc3 {[%clk 0:02:45]}  Nc4 {[%clk 0:02:00]} 17. Qd3 {[%clk 0:02:39]}  Qc7 {[%clk 0:01:59]} 18. f5 {[%clk 0:02:37]}  Nf6 {[%clk 0:01:56]} 19. fxg6+ {[%clk 0:02:35]}  hxg6 {[%clk 0:01:57]} 20. Kh1 {[%clk 0:02:30]}  e5 {[%clk 0:01:57]} 21. Ne2 {[%clk 0:02:10]}  Bf5 {[%clk 0:01:55]} 22. Rxf5 {[%clk 0:02:00]}  gxf5 {[%clk 0:01:56]} 23. Bg5 {[%clk 0:01:54]}  Ne4 {[%clk 0:01:52]} 24. Rf1 {[%clk 0:01:49]}  Qc6 {[%clk 0:01:34]} 25. Qf3 {[%clk 0:01:40]}  f4 {[%clk 0:01:23]} 26. Nxf4 {[%clk 0:01:35]}  Nxg5 {[%clk 0:01:02]} 27. Qh5+ {[%clk 0:01:32]}  Kg8 {[%clk 0:01:01]} 28. Ng6 {[%clk 0:01:27]}  Qe8 {[%clk 0:00:47]} 29. Qxg5 {[%clk 0:01:23]}  e4 {[%clk 0:00:41]} 30. Ne7+ {[%clk 0:01:22]}  Kh7 {[%clk 0:00:41]} 31. Qf5+ {[%clk 0:01:18]}  Kh6 {[%clk 0:00:31]} 32. Qxe4 {[%clk 0:01:14]}  Ne5 {[%clk 0:00:27]} 33. Nf5+ {[%clk 0:01:11]}  Kh7 {[%clk 0:00:22]} 34. Nxd6+ {[%clk 0:01:10]}  Qg6 {[%clk 0:00:22]} 35. Qxg6+ {[%clk 0:01:10]}  Kxg6 {[%clk 0:00:23]} 36. Nxb7 {[%clk 0:01:11]}  Nc4 {[%clk 0:00:22]} 37. Rf3 {[%clk 0:01:09]}  Nd2 {[%clk 0:00:22]} 38. Rd3 {[%clk 0:01:09]}  Ne4 {[%clk 0:00:21]} 39. Kg1 {[%clk 0:01:09]}  Nxc3 {[%clk 0:00:21]} 40. a3 {[%clk 0:01:06]}  Nb5 {[%clk 0:00:12]} 41. c4 {[%clk 0:01:05]}  Nd4 {[%clk 0:00:10]} 42. c5 {[%clk 0:01:03]}  Kf5 {[%clk 0:00:10]} 43. Kf1 {[%clk 0:01:02]}  Ke4 {[%clk 0:00:10]} 44. Rg3 {[%clk 0:01:00]}  Be5 {[%clk 0:00:09]} 45. Rg6 {[%clk 0:01:00]}  Kd5 {[%clk 0:00:06]} 46. h4 {[%clk 0:00:59]}  Ne6 {[%clk 0:00:06]} 47. h5 {[%clk 0:00:59]}  Nf4 {[%clk 0:00:06]} 48. Rg5 {[%clk 0:00:59]}  Nd3 {[%clk 0:00:05]} 49. h6 {[%clk 0:00:58]}  Ke4 {[%clk 0:00:04]} 50. Rxe5+ {[%clk 0:00:55]}  Nxe5 {[%clk 0:00:05]} 51. h7 {[%clk 0:00:55]}  Ng6 {[%clk 0:00:05]} 52. c6 {[%clk 0:00:55]}  a5 {[%clk 0:00:05]} 53. c7 {[%clk 0:00:55]}  a4 {[%clk 0:00:06]} 54. c8=Q {[%clk 0:00:56]}  Kf4 {[%clk 0:00:07]} 55. Qc4+ {[%clk 0:00:56]}  Kg3 {[%clk 0:00:07]} 56. Qd3+ {[%clk 0:00:56]}  Kh2 {[%clk 0:00:08]} 57. Qh3# {[%clk 0:00:56]} 1-0


[Site "https://www.chess.com"]

[Event "Titled Tuesday Blitz March 08 Early 2022"]
[White "Vasquez Schroeder, Rodrigo"]
[Black "Mirzoev, Azer"]
[WhiteFideId "3400042"]
[BlackFideId "13400304"]
[WhiteElo "2561"]
[BlackElo "2525"]
[Result "1-0"]
[Round "09"]
[TimeControl "180+1"]
[Date "2022.03.08"]
[WhiteClock "0:01:10"]
[BlackClock "0:00:07"]

1. e4 {[%clk 0:03:00]}  Nf6 {[%clk 0:02:59]} 2. e5 {[%clk 0:03:00]}  Nd5 {[%clk 0:02:59]} 3. d4 {[%clk 0:03:01]}  d6 {[%clk 0:03:00]} 4. Nf3 {[%clk 0:03:01]}  dxe5 {[%clk 0:03:00]} 5. Nxe5 {[%clk 0:03:01]}  c6 {[%clk 0:03:00]} 6. Bc4 {[%clk 0:03:00]}  Nd7 {[%clk 0:03:00]} 7. Nf3 {[%clk 0:03:00]}  N7f6 {[%clk 0:03:00]} 8. h3 {[%clk 0:02:57]}  Bf5 {[%clk 0:02:59]} 9. O-O {[%clk 0:02:58]}  e6 {[%clk 0:02:59]} 10. Re1 {[%clk 0:02:58]}  h6 {[%clk 0:02:59]} 11. Bb3 {[%clk 0:02:58]}  Be7 {[%clk 0:02:58]} 12. Nbd2 {[%clk 0:02:58]}  O-O {[%clk 0:02:57]} 13. Nc4 {[%clk 0:02:57]}  Bh7 {[%clk 0:02:56]} 14. Nce5 {[%clk 0:02:57]}  c5 {[%clk 0:02:51]} 15. c4 {[%clk 0:02:50]}  Nb6 {[%clk 0:02:51]} 16. Be3 {[%clk 0:02:49]}  cxd4 {[%clk 0:02:48]} 17. Bxd4 {[%clk 0:02:49]}  Qc7 {[%clk 0:02:47]} 18. Qe2 {[%clk 0:02:49]}  Rad8 {[%clk 0:02:42]} 19. Red1 {[%clk 0:02:47]}  Nbd7 {[%clk 0:02:39]} 20. Nxd7 {[%clk 0:02:42]}  Rxd7 {[%clk 0:02:39]} 21. Bc2 {[%clk 0:02:41]}  Bxc2 {[%clk 0:02:36]} 22. Qxc2 {[%clk 0:02:42]}  Rfd8 {[%clk 0:02:34]} 23. b3 {[%clk 0:02:41]}  a6 {[%clk 0:02:32]} 24. a4 {[%clk 0:02:40]}  Bc5 {[%clk 0:02:28]} 25. Bxc5 {[%clk 0:02:30]}  Qxc5 {[%clk 0:02:28]} 26. Rxd7 {[%clk 0:02:31]}  Rxd7 {[%clk 0:02:28]} 27. Rd1 {[%clk 0:02:31]}  Rxd1+ {[%clk 0:02:27]} 28. Qxd1 {[%clk 0:02:32]}  Ne4 {[%clk 0:02:20]} 29. Qd4 {[%clk 0:02:30]}  Qxd4 {[%clk 0:02:18]} 30. Nxd4 {[%clk 0:02:31]}  a5 {[%clk 0:02:17]} 31. f3 {[%clk 0:02:18]}  Nc5 {[%clk 0:02:17]} 32. f4 {[%clk 0:02:15]}  Kf8 {[%clk 0:02:16]} 33. Kf2 {[%clk 0:02:15]}  g6 {[%clk 0:02:09]} 34. Ke3 {[%clk 0:02:14]}  Ke7 {[%clk 0:02:09]} 35. Kd2 {[%clk 0:02:14]}  f5 {[%clk 0:02:06]} 36. Kc2 {[%clk 0:02:12]}  g5 {[%clk 0:02:04]} 37. fxg5 {[%clk 0:02:10]}  hxg5 {[%clk 0:02:04]} 38. Kc3 {[%clk 0:01:54]}  f4 {[%clk 0:02:00]} 39. b4 {[%clk 0:01:53]}  axb4+ {[%clk 0:01:48]} 40. Kxb4 {[%clk 0:01:53]}  Kd6 {[%clk 0:01:48]} 41. Nb5+ {[%clk 0:01:49]}  Kc6 {[%clk 0:01:44]} 42. Nd4+ {[%clk 0:01:49]}  Kd6 {[%clk 0:01:44]} 43. Nf3 {[%clk 0:01:38]}  Ne4 {[%clk 0:01:36]} 44. Kb5 {[%clk 0:01:33]}  Nc3+ {[%clk 0:01:33]} 45. Kb4 {[%clk 0:01:33]}  Ne4 {[%clk 0:01:32]} 46. a5 {[%clk 0:01:31]}  Kc6 {[%clk 0:00:45]} 47. c5 {[%clk 0:01:30]}  Nxc5 {[%clk 0:00:32]} 48. Nxg5 {[%clk 0:01:29]}  e5 {[%clk 0:00:31]} 49. Kc4 {[%clk 0:01:28]}  Nd7 {[%clk 0:00:19]} 50. Ne4 {[%clk 0:01:19]}  Nf8 {[%clk 0:00:14]} 51. h4 {[%clk 0:01:18]}  Ng6 {[%clk 0:00:08]} 52. h5 {[%clk 0:01:18]}  Nf8 {[%clk 0:00:08]} 53. Nf6 {[%clk 0:01:14]}  Kd6 {[%clk 0:00:08]} 54. h6 {[%clk 0:01:14]}  Ke6 {[%clk 0:00:09]} 55. h7 {[%clk 0:01:11]}  Ng6 {[%clk 0:00:07]} 56. Ne4 {[%clk 0:01:10]} 1-0


[Site "https://www.chess.com"]

[Event "Titled Tuesday Blitz March 08 Early 2022"]
[White "Vianello, Enrico"]
[Black "Qashashvili, Alexandre"]
[WhiteFideId "810738"]
[BlackFideId "13600842"]
[WhiteElo "2236"]
[BlackElo "2316"]
[Result "1-0"]
[Round "09"]
[TimeControl "180+1"]
[Date "2022.03.09"]
[WhiteClock "0:01:54"]
[BlackClock "0:02:14"]

1. Nf3 {[%clk 0:02:52]}  c6 {[%clk 0:03:00]} 2. c4 {[%clk 0:02:53]}  d5 {[%clk 0:03:01]} 3. e3 {[%clk 0:02:53]}  Nf6 {[%clk 0:03:02]} 4. Qc2 {[%clk 0:02:53]}  g6 {[%clk 0:03:02]} 5. b3 {[%clk 0:02:50]}  Bg7 {[%clk 0:03:02]} 6. Bb2 {[%clk 0:02:50]}  Bf5 {[%clk 0:03:02]} 7. d3 {[%clk 0:02:50]}  dxc4 {[%clk 0:03:02]} 8. bxc4 {[%clk 0:02:50]}  O-O {[%clk 0:03:02]} 9. Nbd2 {[%clk 0:02:50]}  Nbd7 {[%clk 0:03:00]} 10. Be2 {[%clk 0:02:49]}  Re8 {[%clk 0:02:57]} 11. e4 {[%clk 0:02:44]}  Bg4 {[%clk 0:02:55]} 12. e5 {[%clk 0:02:45]}  Bxf3 {[%clk 0:02:55]} 13. Bxf3 {[%clk 0:02:43]}  Nh5 {[%clk 0:02:50]} 14. Bxh5 {[%clk 0:02:38]}  gxh5 {[%clk 0:02:51]} 15. d4 {[%clk 0:02:37]}  c5 {[%clk 0:02:49]} 16. f4 {[%clk 0:02:18]}  cxd4 {[%clk 0:02:47]} 17. Bxd4 {[%clk 0:02:19]}  e6 {[%clk 0:02:42]} 18. O-O {[%clk 0:02:16]}  Rc8 {[%clk 0:02:35]} 19. Ne4 {[%clk 0:02:07]}  Bf8 {[%clk 0:02:24]} 20. Rac1 {[%clk 0:02:03]}  Qc7 {[%clk 0:02:20]} 21. Qe2 {[%clk 0:01:59]}  Nc5 {[%clk 0:02:14]} 22. Nf6+ {[%clk 0:01:58]}  Kh8 {[%clk 0:02:14]} 23. Qc2 {[%clk 0:01:54]} 1-0


[Site "https://www.chess.com"]

[Event "Titled Tuesday Blitz March 08 Early 2022"]
[White "Vifleemskaia, Svetlana"]
[Black "Kuzmin, Roman"]
[WhiteFideId "4129490"]
[BlackFideId "44134932"]
[WhiteElo "1901"]
[BlackElo "1978"]
[Result "0-1"]
[Round "09"]
[TimeControl "180+1"]
[Date "2022.03.09"]
[WhiteClock "0:02:00"]
[BlackClock "0:00:58"]

1. d4 {[%clk 0:02:54]}  d5 {[%clk 0:02:59]} 2. c4 {[%clk 0:02:54]}  e6 {[%clk 0:02:58]} 3. Nc3 {[%clk 0:02:53]}  Nf6 {[%clk 0:02:58]} 4. cxd5 {[%clk 0:02:53]}  exd5 {[%clk 0:02:59]} 5. Bg5 {[%clk 0:02:53]}  Nbd7 {[%clk 0:02:57]} 6. e3 {[%clk 0:02:52]}  c6 {[%clk 0:02:56]} 7. Bd3 {[%clk 0:02:52]}  Be7 {[%clk 0:02:55]} 8. Qc2 {[%clk 0:02:52]}  O-O {[%clk 0:02:55]} 9. Nge2 {[%clk 0:02:52]}  Re8 {[%clk 0:01:59]} 10. O-O {[%clk 0:02:50]}  Nf8 {[%clk 0:01:56]} 11. f3 {[%clk 0:02:49]}  g6 {[%clk 0:01:37]} 12. Bh4 {[%clk 0:02:46]}  Ne6 {[%clk 0:01:37]} 13. Bf2 {[%clk 0:02:45]}  c5 {[%clk 0:01:27]} 14. Qd2 {[%clk 0:02:43]}  cxd4 {[%clk 0:01:19]} 15. exd4 {[%clk 0:02:42]}  Ng7 {[%clk 0:01:15]} 16. Ng3 {[%clk 0:02:34]}  a6 {[%clk 0:01:13]} 17. a3 {[%clk 0:02:31]}  h5 {[%clk 0:01:10]} 18. Qh6 {[%clk 0:02:20]}  Ng4 {[%clk 0:01:00]} 19. Bxg6 {[%clk 0:02:00]}  Nxh6 {[%clk 0:00:58]} 0-1


[Site "https://www.chess.com"]